fUST/lending_fUST_20240322
["ID","MTS","AMOUNT","RATE_DAILY","PERIOD"]
[320055944,1711119053190,-153.0,0.00030763,2]
[320055945,1711119053200,-153.0,0.00030763,2]
[320055946,1711119053209,-153.0,0.00030763,2]
[320055947,1711119053219,-153.0,0.00030763,2]
[320055948,1711119053228,-153.0,0.00030763,2]
[320055949,1711119053237,-153.0,0.00030763,2]
[320055950,1711119053246,-153.0,0.00030763,2]
[320055951,1711119053256,-153.0,0.00030763,2]
[320055952,1711119053265,-7714.39605189,0.00031,3]
[320055953,1711119053274,-1951.56616901,0.00031,2]
[320055954,1711119053283,-187.69965055,0.00031,2]
[320055955,1711119053292,-500.0,0.00031232,2]
[320055956,1711119053302,-500.0,0.00031232,2]
[320055957,1711119053311,-500.0,0.00031232,2]
[320055958,1711119053324,-847.92,0.00031232,2]
[320055959,1711119053333,-500.0,0.00031232,2]
[320055960,1711119053342,-692.61,0.00031232,2]
[320055961,1711119053351,-500.0,0.00031232,2]
[320055962,1711119053361,-500.0,0.00031232,2]
[320055963,1711119053371,-509.05,0.00031232,2]
[320055964,1711119053380,-500.0,0.00031232,2]
[320055965,1711119053390,-500.0,0.00031232,2]
[320055966,1711119053399,-329.3473166,0.00031232,2]
[320055967,1711119053408,-1363.16,0.00031232,2]
[320055968,1711119053417,-500.0,0.00031232,2]
[320055969,1711119053426,-451.72585333,0.00031232,2]
[320055970,1711119053436,-500.0,0.00031232,2]
[320055971,1711119053445,-704.96,0.00031232,2]
[320055972,1711119053455,-1762.48,0.00031232,2]
[320055973,1711119053464,-842.13,0.00031232,2]
[320055974,1711119053473,-614.83,0.00031232,2]
[320055975,1711119053485,-500.0,0.00031232,2]
[320055976,1711119053494,-1056.53,0.00031232,2]
[320055977,1711119053504,-2137.3,0.00031232,2]
[320055978,1711119053513,-500.0,0.00031232,2]
[320055979,1711119053523,-500.0,0.00031232,2]
[320055980,1711119053533,-1081.26,0.00031232,2]
[320055981,1711119053543,-525.63,0.00031232,2]
[320055982,1711119053552,-500.0,0.00031232,2]
[320055983,1711119053565,-3047.59,0.00031232,2]
[320055984,1711119053575,-1645.17,0.00031232,2]
[320055985,1711119053585,-500.0,0.00031232,2]
[320055986,1711119053594,-1618.58,0.00031232,2]
[320055987,1711119053603,-969.71,0.00031232,2]
[320055988,1711119053613,-591.12,0.00031232,2]
[320055989,1711119053623,-500.0,0.00031232,2]
[320055990,1711119053635,-500.0,0.00031232,2]
[320055991,1711119053645,-500.0,0.00031232,2]
[320055992,1711119053655,-500.0,0.00031232,2]
[320055993,1711119053664,-500.0,0.00031232,2]
[320055994,1711119053674,-755.24,0.00031232,2]
[320055995,1711119053683,-500.0,0.00031232,2]
[320055996,1711119053693,-500.0,0.00031232,2]
[320055997,1711119053702,-520.1,0.00031232,2]
[320055998,1711119053712,-500.0,0.00031232,2]
[320055999,1711119053721,-500.0,0.00031232,2]
[320056000,1711119053731,-916.66,0.00031232,2]
[320056001,1711119053740,-500.0,0.00031232,2]
[320056002,1711119053749,-500.0,0.00031232,2]
[320056003,1711119053760,-500.0,0.00031232,2]
[320056004,1711119053769,-500.0,0.00031232,2]
[320056005,1711119053779,-500.0,0.00031232,2]
[320056006,1711119053788,-653.65,0.00031232,2]
[320056007,1711119053797,-500.0,0.00031232,2]
[320056008,1711119053807,-1861.19,0.00031232,2]
[320056009,1711119053823,-500.0,0.00031232,2]
[320056010,1711119053833,-500.0,0.00031232,2]
[320056011,1711119053843,-549.92,0.00031232,2]
[320056012,1711119053852,-500.0,0.00031232,2]
[320056013,1711119053861,-2108.04,0.00031232,2]
[320056014,1711119053871,-500.0,0.00031232,2]
[320056015,1711119053879,-8401.09,0.00031232,2]
[320056016,1711119053888,-2025.26,0.00031232,2]
[320056017,1711119053897,-2315.86,0.00031232,2]
[320056018,1711119053906,-5165.53,0.00031232,2]
[320056019,1711119053915,-547.22,0.00031232,2]
[320056020,1711119053925,-764.57,0.00031232,2]
[320056021,1711119053933,-645.06,0.00031232,2]
[320056022,1711119053943,-500.0,0.00031232,2]
[320056023,1711119053952,-19488.85,0.00031232,2]
[320056024,1711119053961,-500.0,0.00031232,2]
[320056025,1711119053971,-2965.52,0.00031232,2]
[320056026,1711119053980,-500.0,0.00031232,2]
[320056027,1711119053990,-2081.01,0.00031232,2]
[320056028,1711119053998,-500.0,0.00031232,2]
[320056029,1711119054008,-805.61,0.00031232,2]
[320056030,1711119054018,-1651.79,0.00031232,2]
[320056031,1711119054027,-1362.67,0.00031232,2]
[320056032,1711119054036,-2555.84,0.00031232,2]
[320056033,1711119054047,-2681.6,0.00031232,2]
[320056034,1711119054056,-4416.9,0.00031232,2]
[320056035,1711119054067,-2420.16,0.00031232,2]
[320056036,1711119054076,-680.3,0.00031232,2]
[320056037,1711119054085,-1050.15,0.00031232,2]
[320056038,1711119054095,-500.0,0.00031232,2]
[320056039,1711119054104,-500.0,0.00031232,2]
[320056040,1711119054113,-1090.36,0.00031232,2]
[320056041,1711119054122,-500.0,0.00031232,2]
[320056042,1711119054131,-500.0,0.00031232,2]
[320056043,1711119054141,-4599.57,0.00031232,2]
[320056044,1711119054150,-846.22,0.00031232,2]
[320056045,1711119054159,-500.0,0.00031232,2]
[320056046,1711119054168,-500.0,0.00031232,2]
[320056047,1711119054178,-500.0,0.00031232,2]
[320056048,1711119054187,-6406.0811708,0.00031232,2]
[320056049,1711119054544,-500.0,0.00027397,2]
[320056050,1711119054553,-500.0,0.00027397,2]
[320056051,1711119054562,-24900.0,0.00027583,2]
[320056052,1711119054574,-500.0,0.00027945,2]
[320056053,1711119054584,-486.59437873,0.00029041,2]
[320056054,1711119054593,-153.0,0.00029119,2]
[320056055,1711119054602,-201.8484782,0.00029794,2]
[320056056,1711119054615,-20929.5688292,0.00031232,2]
[320056057,1711119054624,-1873.21,0.00031232,2]
[320056058,1711119054634,-500.0,0.00031232,2]
[320056059,1711119054643,-500.0,0.00031232,2]
[320056060,1711119054655,-5887.96,0.00031232,2]
[320056061,1711119054664,-476.29509276,0.00031232,2]
[320056062,1711119054673,-500.0,0.00031232,2]
[320056063,1711119054683,-500.0,0.00031232,2]
[320056064,1711119054692,-25844.78,0.00031232,2]
[320056065,1711119054702,-2201.2,0.00031232,2]
[320056066,1711119054712,-500.0,0.00031232,2]
[320056067,1711119054721,-1041.72,0.00031232,2]
[320056068,1711119054731,-500.0,0.00031232,2]
[320056069,1711119054741,-1783.07,0.00031232,2]
[320056070,1711119054751,-500.0,0.00031232,2]
[320056071,1711119054761,-500.0,0.00031232,2]
[320056072,1711119054771,-500.0,0.00031232,2]
[320056073,1711119054781,-2000.0,0.000315,2]
[320056074,1711119054791,-153.0,0.00031507,2]
[320056075,1711119054801,-153.0,0.00031507,2]
[320056076,1711119054810,-590.25483771,0.0003151,2]
[320056082,1711119214280,952468.49639959,0.00025737,60]
[320056083,1711119235583,339.56657948,0.0002,2]
[320056084,1711119235613,2279.86866216,0.0002,2]
[320056085,1711119245605,5228.89081806,0.00015498,2]
[320056086,1711119256138,985611.93011655,0.00025801,60]
[320056087,1711119259057,155.48594838,0.000195,2]
[320056088,1711119261800,20667.16027353,0.0002,2]
[320056094,1711119272299,1949.27164643,0.000176,2]
[320056096,1711119276981,271.52738804,0.0001,2]
[320056097,1711119280533,7359.38575588,0.00018,2]
[320056099,1711119283085,442.35997075,0.0002,2]
[320056100,1711119283116,1225.87793299,0.0002,2]
[320056110,1711119755500,156.59833835,0.00023864,120]
[320056111,1711119755525,4.85925765,0.00023864,120]
[320056118,1711120166336,155.50616146,0.00019,2]
[320056167,1711120234122,-270.33906,0.00023373,2]
[320056168,1711120234137,-287.6,0.00023373,2]
[320056177,1711120238565,-127.53232469,0.00023373,2]
[320056178,1711120238575,-11104.29736065,0.00023374,2]
[320056179,1711120238587,-607.81083038,0.00023374,2]
[320056180,1711120238636,-36044.24378285,0.00023374,2]
[320056181,1711120238646,-18599.88,0.00023374,2]
[320056182,1711120238656,-24900.0,0.00023375,2]
[320056183,1711120238666,-1006.65254532,0.00023417,2]
[320056184,1711120238676,-1449.77463889,0.00023701,2]
[320056185,1711120238686,-161.457596,0.00023864,2]
[320056186,1711120238696,-177.902343,0.00024095,2]
[320056187,1711120238705,-339.2188799,0.00024213,2]
[320056188,1711120238715,-271.61915004,0.00024362,2]
[320056189,1711120238728,-304.78785734,0.00024459,2]
[320056190,1711120238739,-205.13492374,0.0002446,2]
[320056191,1711120238749,-528.639604,0.00024874,2]
[320056192,1711120238759,-4156.7271798,0.00024874,2]
[320056193,1711120238770,-7752.82337168,0.00025,2]
[320056194,1711120238781,-271.61915003,0.00025096,2]
[320056195,1711120238792,-2000.0,0.000255,30]
[320056196,1711120238802,-2000.0,0.0002551,30]
[320056197,1711120238813,-2000.0,0.0002552,30]
[320056198,1711120238824,-2000.0,0.0002553,30]
[320056199,1711120238835,-2000.0,0.0002554,30]
[320056200,1711120238849,-2000.0,0.0002555,30]
[320056201,1711120238859,-2537.319195,0.0002556,30]
[320056202,1711120238870,-427.28291829,0.00025781,10]
[320056204,1711120238881,-997.0,0.00025781,10]
[320056205,1711120238892,-290.32753414,0.00025781,2]
[320056206,1711120238902,-284.43540265,0.00025781,2]
[320056207,1711120238913,-3142.73928404,0.00025781,2]
[320056209,1711120238923,-5426.75074665,0.00025781,7]
[320056210,1711120238934,-250.0,0.00025781,2]
[320056212,1711120238945,-154.87609812,0.00025781,2]
[320056213,1711120238956,-455.05544217,0.00025781,2]
[320056215,1711120238967,-3995.79001961,0.00025781,2]
[320056216,1711120238986,-1000.30590547,0.00025781,2]
[320056217,1711120238996,-271.61915003,0.0002583,2]
[320056219,1711120239006,-735.2862035,0.00026,2]
[320056220,1711120239016,-164.497557,0.00026195,2]
[320056221,1711120239027,-271.61915003,0.00026563,2]
[320056223,1711120239036,-997.0,0.00026648,2]
[320056225,1711120239046,-500.0,0.00027196,2]
[320056227,1711120239056,-500.0,0.00027196,2]
[320056228,1711120239066,-500.0,0.00027196,2]
[320056229,1711120239076,-500.0,0.00027196,2]
[320056231,1711120239085,-500.0,0.00027196,2]
[320056232,1711120239095,-500.0,0.00027196,2]
[320056233,1711120239105,-500.0,0.00027196,2]
[320056234,1711120239114,-482.98905691,0.00027196,2]
[320056235,1711120239123,-271.61915003,0.00027297,2]
[320056236,1711120239133,-1642.81102961,0.00027396,2]
[320056237,1711120239143,-25038.69636572,0.00027397,3]
[320056238,1711120239153,-500.0,0.00027397,2]
[320056239,1711120239163,-154.87609912,0.00027397,2]
[320056240,1711120239172,-500.0,0.00027397,2]
[320056241,1711120239182,-500.0,0.00027397,2]
[320056242,1711120239192,-500.0,0.00027397,2]
[320056243,1711120239201,-395.91513467,0.00027397,2]
[320056244,1711120239211,-500.0,0.00027397,2]
[320056245,1711120239224,-500.0,0.00027397,2]
[320056246,1711120239234,-500.0,0.00027397,2]
[320056247,1711120239243,-508.22981875,0.00027397,2]
[320056248,1711120239253,-500.0,0.00027397,2]
[320056249,1711120239264,-627.12549703,0.00027397,2]
[320056250,1711120239273,-500.0,0.00027397,2]
[320056251,1711120239282,-500.0,0.00027397,2]
[320056252,1711120239291,-500.0,0.00027397,2]
[320056253,1711120239301,-500.0,0.00027397,2]
[320056254,1711120239310,-500.0,0.00027397,2]
[320056255,1711120239319,-500.0,0.00027397,2]
[320056256,1711120239328,-500.0,0.00027397,2]
[320056257,1711120239337,-500.0,0.00027397,2]
[320056258,1711120239346,-500.0,0.00027397,2]
[320056259,1711120239356,-500.0,0.00027397,2]
[320056260,1711120239365,-500.0,0.00027397,2]
[320056261,1711120239374,-500.0,0.00027397,2]
[320056262,1711120239383,-500.0,0.00027397,2]
[320056263,1711120239393,-500.0,0.00027397,2]
[320056264,1711120239402,-500.0,0.00027397,2]
[320056265,1711120239411,-500.0,0.00027397,2]
[320056266,1711120239420,-500.0,0.00027397,2]
[320056267,1711120239435,-500.0,0.00027397,2]
[320056268,1711120239444,-500.0,0.00027397,2]
[320056269,1711120239453,-500.0,0.00027397,2]
[320056270,1711120239462,-500.0,0.00027397,2]
[320056271,1711120239474,-500.0,0.00027397,2]
[320056272,1711120239484,-500.0,0.00027397,2]
[320056273,1711120239493,-500.0,0.00027397,2]
[320056274,1711120239501,-500.0,0.00027397,2]
[320056275,1711120239512,-500.0,0.00027397,2]
[320056276,1711120239521,-500.0,0.00027397,2]
[320056277,1711120239530,-629.13,0.00027397,2]
[320056278,1711120239539,-500.0,0.00027397,2]
[320056279,1711120239548,-729.16,0.00027397,2]
[320056280,1711120239557,-500.0,0.00027397,2]
[320056281,1711120239565,-500.0,0.00027397,2]
[320056282,1711120239574,-500.0,0.00027397,2]
[320056283,1711120239584,-501.85256439,0.00027397,2]
[320056284,1711120239593,-500.0,0.00027397,2]
[320056285,1711120239602,-500.0,0.00027397,2]
[320056286,1711120239611,-500.0,0.00027397,2]
[320056287,1711120239620,-1127.96,0.00027397,2]
[320056288,1711120239630,-599.18782755,0.00027397,2]
[320056289,1711120239639,-500.0,0.00027397,2]
[320056290,1711120239649,-500.0,0.00027397,2]
[320056291,1711120239659,-500.0,0.00027397,2]
[320056292,1711120239668,-594.2940873,0.00027397,2]
[320056293,1711120239677,-500.0,0.00027397,2]
[320056294,1711120239686,-500.0,0.00027397,2]
[320056295,1711120239695,-500.0,0.00027397,2]
[320056296,1711120239704,-500.0,0.00027397,2]
[320056297,1711120239714,-1473.44,0.00027397,2]
[320056298,1711120239727,-500.0,0.00027397,2]
[320056299,1711120239736,-500.0,0.00027397,2]
[320056300,1711120239745,-500.0,0.00027397,2]
[320056301,1711120239755,-500.0,0.00027397,2]
[320056302,1711120239765,-1485.15,0.00027397,2]
[320056303,1711120239775,-500.0,0.00027397,2]
[320056304,1711120239785,-500.0,0.00027397,2]
[320056305,1711120239794,-170.84898044,0.00027397,2]
[320056306,1711120239804,-543.31,0.00027397,2]
[320056307,1711120239814,-623.15,0.00027397,2]
[320056308,1711120239823,-500.0,0.00027397,2]
[320056309,1711120239832,-500.0,0.00027397,2]
[320056310,1711120239983,-771.98,0.00027397,2]
[320056311,1711120239994,-500.0,0.00027397,2]
[320056312,1711120240004,-500.0,0.00027397,2]
[320056313,1711120240014,-500.0,0.00027397,2]
[320056314,1711120240024,-500.0,0.00027397,2]
[320056315,1711120240034,-500.0,0.00027397,2]
[320056316,1711120240045,-500.62140895,0.00027397,2]
[320056317,1711120240056,-934.44,0.00027397,2]
[320056318,1711120240066,-500.0,0.00027397,2]
[320056319,1711120240076,-1988.49,0.00027397,2]
[320056320,1711120240086,-500.0,0.00027397,2]
[320056321,1711120240095,-500.0,0.00027397,2]
[320056322,1711120240104,-626.60944168,0.00027397,2]
[320056323,1711120240113,-294.47,0.00027397,2]
[320056324,1711120240122,-954.18,0.00027397,2]
[320056325,1711120240133,-500.0,0.00027397,2]
[320056326,1711120240144,-155.47423784,0.00027397,2]
[320056327,1711120240154,-500.0,0.00027397,2]
[320056328,1711120240164,-1000.0,0.00027397,2]
[320056329,1711120240174,-500.0,0.00027397,2]
[320056331,1711120240184,-500.0,0.00027397,2]
[320056333,1711120240194,-809.68,0.00027397,2]
[320056334,1711120240205,-500.0,0.00027397,2]
[320056335,1711120240215,-500.0,0.00027397,2]
[320056337,1711120240230,-1373.87,0.00027397,2]
[320056338,1711120240240,-538.94,0.00027397,2]
[320056339,1711120240249,-500.0,0.00027397,2]
[320056340,1711120240259,-500.0,0.00027397,2]
[320056341,1711120240269,-500.0,0.00027397,2]
[320056342,1711120240280,-2752.98,0.00027397,2]
[320056344,1711120240290,-500.0,0.00027397,2]
[320056345,1711120240300,-500.0,0.00027397,2]
[320056346,1711120240311,-1428.35,0.00027397,2]
[320056347,1711120240321,-500.0,0.00027397,2]
[320056348,1711120240331,-500.0,0.00027397,2]
[320056349,1711120240341,-232.51884084,0.00027397,2]
[320056351,1711120240351,-500.0,0.00027397,2]
[320056353,1711120240360,-500.0,0.00027397,2]
[320056355,1711120240370,-500.0,0.00027397,2]
[320056356,1711120240380,-500.0,0.00027397,2]
[320056358,1711120240390,-500.0,0.00027397,2]
[320056360,1711120240399,-500.0,0.00027397,2]
[320056362,1711120240409,-500.0,0.00027397,2]
[320056364,1711120240418,-637.77,0.00027397,2]
[320056366,1711120240428,-500.0,0.00027397,2]
[320056368,1711120240437,-500.0,0.00027397,2]
[320056370,1711120240447,-500.0,0.00027397,2]
[320056372,1711120240455,-500.0,0.00027397,2]
[320056374,1711120240465,-500.0,0.00027397,2]
[320056376,1711120240480,-500.0,0.00027397,2]
[320056378,1711120240490,-500.0,0.00027397,2]
[320056380,1711120240499,-500.0,0.00027397,2]
[320056382,1711120240508,-500.0,0.00027397,2]
[320056384,1711120240518,-500.0,0.00027397,2]
[320056386,1711120240527,-500.0,0.00027397,2]
[320056388,1711120240536,-500.0,0.00027397,2]
[320056390,1711120240545,-500.0,0.00027397,2]
[320056392,1711120240554,-500.0,0.00027397,2]
[320056394,1711120240563,-500.0,0.00027397,2]
[320056396,1711120240573,-500.0,0.00027397,2]
[320056398,1711120240582,-500.0,0.00027397,2]
[320056400,1711120240591,-500.0,0.00027397,2]
[320056402,1711120240600,-500.0,0.00027397,2]
[320056404,1711120240608,-236.64260937,0.00027397,2]
[320056406,1711120240617,-500.0,0.00027397,2]
[320056408,1711120240626,-500.0,0.00027397,2]
[320056410,1711120240635,-500.0,0.00027397,2]
[320056412,1711120240644,-500.0,0.00027397,2]
[320056414,1711120240653,-500.0,0.00027397,2]
[320056416,1711120240662,-500.0,0.00027397,2]
[320056418,1711120240671,-500.0,0.00027397,2]
[320056419,1711120240682,-500.0,0.00027397,2]
[320056421,1711120240691,-500.0,0.00027397,2]
[320056423,1711120240701,-500.0,0.00027397,2]
[320056425,1711120240710,-500.0,0.00027397,2]
[320056428,1711120240721,-500.0,0.00027397,2]
[320056430,1711120240733,-500.0,0.00027397,2]
[320056434,1711120240743,-500.0,0.00027397,2]
[320056438,1711120240753,-500.0,0.00027397,2]
[320056441,1711120240762,-500.0,0.00027397,2]
[320056444,1711120240773,-370.02171051,0.00027397,2]
[320056447,1711120240782,-500.0,0.00027397,2]
[320056450,1711120240791,-500.0,0.00027397,2]
[320056453,1711120240801,-500.0,0.00027397,2]
[320056456,1711120240810,-500.0,0.00027397,2]
[320056459,1711120240819,-500.0,0.00027397,2]
[320056462,1711120240829,-500.0,0.00027397,2]
[320056465,1711120240838,-500.0,0.00027397,2]
[320056468,1711120240847,-500.0,0.00027397,2]
[320056471,1711120240857,-500.0,0.00027397,2]
[320056474,1711120240866,-500.0,0.00027397,2]
[320056477,1711120240876,-500.0,0.00027397,2]
[320056480,1711120240885,-500.0,0.00027397,2]
[320056482,1711120240894,-500.0,0.00027397,2]
[320056484,1711120240903,-500.0,0.00027397,2]
[320056486,1711120240912,-21708.19,0.00027397,2]
[320056488,1711120240921,-500.0,0.00027397,2]
[320056490,1711120240931,-500.0,0.00027397,2]
[320056491,1711120240940,-500.0,0.00027397,2]
[320056493,1711120240949,-500.0,0.00027397,2]
[320056495,1711120240958,-500.0,0.00027397,2]
[320056497,1711120240968,-500.0,0.00027397,2]
[320056498,1711120240990,-500.0,0.00027397,2]
[320056499,1711120241002,-531.4265579,0.00027397,2]
[320056500,1711120241011,-500.0,0.00027397,2]
[320056501,1711120241022,-500.0,0.00027397,2]
[320056502,1711120241035,-500.0,0.00027397,2]
[320056504,1711120241045,-500.0,0.00027397,2]
[320056506,1711120241054,-500.0,0.00027397,2]
[320056507,1711120241064,-600.72,0.00027397,2]
[320056509,1711120241074,-600.72,0.00027397,2]
[320056511,1711120241083,-600.72,0.00027397,2]
[320056513,1711120241092,-4542.77,0.00027397,2]
[320056514,1711120241102,-600.72,0.00027397,2]
[320056516,1711120241111,-600.72,0.00027397,2]
[320056518,1711120241120,-600.72,0.00027397,2]
[320056520,1711120241130,-600.72,0.00027397,2]
[320056521,1711120241139,-600.72,0.00027397,2]
[320056523,1711120241149,-600.72,0.00027397,2]
[320056525,1711120241158,-500.0,0.00027397,2]
[320056526,1711120241167,-600.72,0.00027397,2]
[320056527,1711120241179,-600.72,0.00027397,2]
[320056528,1711120241188,-600.72,0.00027397,2]
[320056529,1711120241197,-600.72,0.00027397,2]
[320056530,1711120241207,-600.72,0.00027397,2]
[320056531,1711120241217,-600.72,0.00027397,2]
[320056532,1711120241230,-600.72,0.00027397,2]
[320056533,1711120241239,-600.72,0.00027397,2]
[320056534,1711120241248,-600.72,0.00027397,2]
[320056536,1711120241257,-500.0,0.00027397,2]
[320056537,1711120241266,-500.0,0.00027397,2]
[320056539,1711120241276,-500.0,0.00027397,2]
[320056540,1711120241285,-500.0,0.00027397,2]
[320056541,1711120241294,-500.0,0.00027397,2]
[320056542,1711120241303,-500.0,0.00027397,2]
[320056543,1711120241312,-500.0,0.00027397,2]
[320056544,1711120241321,-500.0,0.00027397,2]
[320056545,1711120241330,-500.0,0.00027397,2]
[320056546,1711120241339,-1525.38,0.00027397,2]
[320056547,1711120241350,-500.0,0.00027397,2]
[320056548,1711120241359,-500.0,0.00027397,2]
[320056549,1711120241368,-500.0,0.00027397,2]
[320056550,1711120241376,-298.13990406,0.00027397,2]
[320056551,1711120241386,-500.0,0.00027397,2]
[320056552,1711120241394,-544.02,0.00027397,2]
[320056553,1711120241403,-500.0,0.00027397,2]
[320056554,1711120241412,-500.0,0.00027397,2]
[320056555,1711120241421,-500.0,0.00027397,2]
[320056556,1711120241430,-1805.24,0.00027397,2]
[320056557,1711120241438,-500.0,0.00027397,2]
[320056558,1711120241447,-1000.0,0.00027397,2]
[320056559,1711120241457,-500.0,0.00027397,2]
[320056560,1711120241466,-500.0,0.00027397,2]
[320056561,1711120241479,-500.0,0.00027397,2]
[320056562,1711120241488,-842.37,0.00027397,2]
[320056563,1711120241497,-1722.12,0.00027397,2]
[320056564,1711120241507,-500.0,0.00027397,2]
[320056565,1711120241515,-4089.38,0.00027397,2]
[320056566,1711120241524,-500.0,0.00027397,2]
[320056567,1711120241533,-500.0,0.00027397,2]
[320056568,1711120241542,-500.0,0.00027397,2]
[320056569,1711120241551,-500.0,0.00027397,2]
[320056570,1711120241560,-1379.31,0.00027397,2]
[320056571,1711120241569,-500.0,0.00027397,2]
[320056572,1711120241578,-500.0,0.00027397,2]
[320056573,1711120241588,-500.0,0.00027397,2]
[320056574,1711120241596,-500.0,0.00027397,2]
[320056575,1711120241605,-2507.64,0.00027397,2]
[320056576,1711120241614,-500.0,0.00027397,2]
[320056577,1711120241624,-500.0,0.00027397,2]
[320056578,1711120241632,-500.0,0.00027397,2]
[320056579,1711120241641,-500.0,0.00027397,2]
[320056580,1711120241651,-500.0,0.00027397,2]
[320056581,1711120241660,-500.0,0.00027397,2]
[320056582,1711120241669,-500.0,0.00027397,2]
[320056583,1711120241678,-500.0,0.00027397,2]
[320056584,1711120241687,-490.88470483,0.00027397,2]
[320056585,1711120241696,-500.0,0.00027397,2]
[320056586,1711120241705,-500.0,0.00027397,2]
[320056587,1711120241714,-500.0,0.00027397,2]
[320056588,1711120241726,-500.0,0.00027397,2]
[320056589,1711120241735,-500.0,0.00027397,2]
[320056590,1711120241744,-500.0,0.00027397,2]
[320056591,1711120241754,-500.0,0.00027397,2]
[320056592,1711120241763,-500.0,0.00027397,2]
[320056593,1711120241772,-500.0,0.00027397,2]
[320056594,1711120241782,-500.0,0.00027397,2]
[320056595,1711120241792,-500.0,0.00027397,2]
[320056596,1711120241802,-170.91913886,0.00027397,2]
[320056598,1711120241815,-279.05807573,0.00027397,2]
[320056600,1711120241825,-500.0,0.00027397,2]
[320056601,1711120241834,-503.0735052,0.00027397,2]
[320056603,1711120241843,-500.0,0.00027397,2]
[320056605,1711120241853,-672.94,0.00027397,2]
[320056606,1711120241863,-6650.86,0.00027397,2]
[320056607,1711120241872,-1168.74,0.00027397,2]
[320056608,1711120241882,-500.0,0.00027397,2]
[320056609,1711120241893,-16582.04,0.00027397,2]
[320056610,1711120241904,-1915.96,0.00027397,2]
[320056611,1711120241914,-500.85141942,0.00027397,2]
[320056612,1711120241924,-500.0,0.00027397,2]
[320056613,1711120241934,-500.0,0.00027397,2]
[320056614,1711120241945,-500.0,0.00027397,2]
[320056615,1711120241955,-590.39,0.00027397,2]
[320056616,1711120241965,-500.0,0.00027397,2]
[320056617,1711120241984,-500.0,0.00027397,2]
[320056618,1711120241994,-3745.45,0.00027397,2]
[320056619,1711120242004,-1833.39,0.00027397,2]
[320056620,1711120242014,-500.0,0.00027397,2]
[320056621,1711120242026,-500.0,0.00027397,2]
[320056622,1711120242035,-500.0,0.00027397,2]
[320056623,1711120242044,-500.0,0.00027397,2]
[320056624,1711120242055,-500.0,0.00027397,2]
[320056625,1711120242065,-500.0,0.00027397,2]
[320056626,1711120242075,-190.81052707,0.00027397,2]
[320056627,1711120242085,-500.0,0.00027397,2]
[320056628,1711120242095,-500.0,0.00027397,2]
[320056629,1711120242104,-500.0,0.00027397,2]
[320056630,1711120242113,-500.0,0.00027397,2]
[320056631,1711120242123,-500.0,0.00027397,2]
[320056632,1711120242134,-500.0,0.00027397,2]
[320056633,1711120242143,-500.0,0.00027397,2]
[320056634,1711120242153,-500.0,0.00027397,2]
[320056635,1711120242162,-500.0,0.00027397,2]
[320056636,1711120242172,-500.0,0.00027397,2]
[320056637,1711120242181,-500.0,0.00027397,2]